Cogmind - Beta 15 @@@ ROGUE MODE // 2025.09.10 @ 08:21:28 Player: Dosh Result: Destroyed by G-50 Soldier with Heavy Laser Performance ------------- Evolutions (2) 1000 Regions Visited (8) 1600 Robots Destroyed (168) 840 Value Destroyed (6680) 6680 Prototype IDs (24) 480 Alien Tech Used (0) 0 Bonus (3159) 3159 TOTAL SCORE: 13759 Bonus ------- High Alert Combat Kills 454 Follower Combat Kills 933 Entered Garrisons 400 Used RIF Installer 1500 Friendly Fire -128 Cogmind --------- Core Integrity 0/550 Matter 177/300 Energy 240/240 System Corruption 11% Temperature Warm (150) Movement Treading (235) Ox1 Location -8/Materials Parts ------- > --- POWER (1) -------- Nuclear Core > --- PROPULSION (3) --- Advanced Treads Medium Treads Medium Treads > --- UTILITY (5) ------ Huge Storage Unit Advanced Targeting Computer Layered Medium Armor Plating Relay Coupler [NC] (11) Relay Coupler [Grunt] (3) > --- WEAPON (2) ------- Enhanced Autogun Remote Datajack > --- INVENTORY (25) --- Medium Treads Medium Treads Improved Heat Sink Large Matter Pod (150) Transmission Jammer Hardened Medium Armor Plating Layered Medium Armor Plating Hacking Suite Relay Coupler [NC] (22) Relay Coupler [NC] (26) Relay Coupler [Grunt] (31) Relay Coupler [Grunt] (31) Relay Coupler [Behemoth] (8) Gatling Laser Gatling Laser Gatling Laser Enhanced Autogun Enhanced Autogun Heavy Machine Gun Heavy Machine Gun Rocket Launcher Multitool Katana Peak State ------------ > --- POWER ------------ Deuterium Engine > --- PROPULSION ------- Medium Treads Cargo Legs > --- UTILITY ---------- Improved Heat Sink High-capacity Storage Unit Advanced Targeting Computer Transmission Jammer Light Armor Plating Makeshift Hacking Suite > --- WEAPON ----------- Heavy Assault Rifle Enhanced Autogun > --- INVENTORY -------- Deuterium Engine Advanced Treads Medium Treads Medium Treads Medium Treads Medium Treads Medium Treads Medium Treads Medium Treads Huge Storage Unit Large Matter Pod Relay Coupler [Grunt] Relay Coupler [Sentry] Battle Rifle Enhanced Autogun Enhanced Autogun Rocket Launcher Improved Datajack Multitool Katana [Rating: 51] Favorites ----------- Power Ion Engine Engine Ion Engine Power Core Nuclear Core Propulsion Light Treads Treads Light Treads Leg Cargo Legs Wheel Wheel Utility Advanced Targeting Computer Device Improved Heat Sink Storage High-capacity Storage Unit Processor Advanced Targeting Computer Hackware Hacking Suite Protection Light Armor Plating Weapon Enhanced Autogun Energy Gun Heavy EM Shotgun Ballistic Gun Enhanced Autogun Launcher Improved Grenade Launcher Special Weapon Remote Datajack Impact Weapon Hammer Slashing Weapon Katana Special Melee Weapon Improved Datajack Build | -11 -10 -10 -10 -8 -8 -8 -8 -8 ------- Run | Yrd Mat Min Sub Mat Gar Mat Gar Mat Slots Evolved 4 | . . . . 4 . . . . Power . | . . . . . . . . . Propulsion 1 | . . . . 1 . . . . Utility 3 | . . . . 3 . . . . Weapon . | . . . . . . . . . Parts Attached 99 | 6 4 4 5 36 14 6 14 10 Power 11 | 1 1 1 . 4 1 . 2 1 Engine 6 | 1 . 1 . 2 1 . 1 . Core 5 | . 1 . . 2 . . 1 1 Reactor . | . . . . . . . . . Propulsion 20 | 2 . 1 . 10 4 . 2 1 Treads 17 | 2 . 1 . 8 3 . 2 1 Leg 2 | . . . . 1 1 . . . Wheel 1 | . . . . 1 . . . . Hover . | . . . . . . . . . Flight . | . . . . . . . . . Utility 36 | 1 3 . 2 10 7 4 5 4 Device 8 | . 1 . 1 3 3 . . . Storage 5 | 1 2 . . 2 . . . . Processor 2 | . . . . 2 . . . . Hackware 13 | . . . . 1 1 3 5 3 Protection 8 | . . . 1 2 3 1 . 1 Artifact . | . . . . . . . . . Weapon 32 | 2 . 2 3 12 2 2 5 4 Energy Gun 5 | . . . . 5 . . . . Energy Cannon . | . . . . . . . . . Ballistic Gun 19 | 2 . 2 2 5 1 1 3 3 Ballistic Cannon . | . . . . . . . . . Launcher 3 | . . . . 1 . . 1 1 Special Weapon 2 | . . . . . . 1 1 . Impact Weapon 1 | . . . 1 . . . . . Slashing Weapon 1 | . . . . . 1 . . . Piercing Weapon . | . . . . . . . . . Special Melee Weapon 1 | . . . . 1 . . . . Unidentified Prototypes 3 | . . . . 2 . 1 . . Parts Lost 30 | . . 3 . 12 9 1 2 3 Power 5 | . . 1 . 2 1 . . 1 Propulsion 9 | . . 1 . 4 1 . 2 1 Utility 11 | . . 1 . 4 6 . . . Weapon 5 | . . . . 2 1 1 . 1 Highest Loss Streak 3 | . . 2 . 2 3 1 1 2 To Critical Strikes . | . . . . . . . . . Average Backups 16 | . 5 14 14 14 19 19 23 23 Power . | . 1 . 1 . . . . . Propulsion 3 | . 1 2 2 3 6 5 3 2 Utility 5 | . . 2 3 1 6 8 13 12 Weapon 5 | . 2 7 6 6 4 3 4 5 Tool/Special . | . . . . . . . . . Unused Backups 29 | . . 1 4 5 2 1 3 13 Power . | . . . . . . . . . Propulsion 3 | . . . . 3 . . . . Utility 15 | . . . . . 2 1 2 10 Weapon 11 | . . 1 4 2 . . 1 3 Tool/Special . | . . . . . . . . . Average Slot Usage (%) 95 | . 98 87 99 91 86 100 99 99 Engine 6 | . 2 11 14 2 8 9 4 3 Core 4 | . 11 2 . 6 . . 4 5 Treads 24 | . 27 27 28 22 14 27 26 27 Device 7 | . 13 2 4 12 17 5 . . Storage 10 | . 14 14 14 8 8 9 9 9 Processor 4 | . . . . 2 8 9 9 9 Hackware 8 | . . . . 8 1 20 20 21 Protection 4 | . . . 9 6 3 1 6 6 Energy Gun 2 | . . . . 12 . . . . Ballistic Gun 16 | . 28 28 24 5 15 16 12 12 Peak Build Rating 51 | 6 10 10 13 50 51 41 47 46 Average Rating 28 | 4 8 7 10 29 43 39 42 42 On Entrance 23 | . 6 10 7 13 50 39 41 45 Naked Turns . | . . . . . . . . . Heaviest Build 106 | 12 28 28 36 100 64 63 106 104 Greatest Support 84 | 40 40 40 40 84 84 84 84 78 Greatest Overweight (x) 9 | . . . . 9 2 . 1 1 Average Overweight (x) . | . . . . 2 . . . 1 Largest Inventory Capacity 25 | 8 15 15 15 25 20 20 25 25 Average Capacity 18 | 6 9 15 15 19 20 20 24 25 Most Carried 25 | 1 13 15 15 20 20 20 25 25 Average Carried 16 | . 5 14 14 15 19 19 23 23 Final Capacity 25 | 8 15 15 15 20 20 20 25 25 Final Carried 24 | 1 13 14 15 19 20 20 24 23 Class Distribution -------------------- 49% | Mutant 37% | Bothacker-Mutant 11% | Scavenger-Mutant Dominant Class ---------------- Mutant | -10/Materials Mutant | -10/Mines Mutant | -10/Subcaves Mutant | -8/Materials Bothacker-Mutant | -8/Garrison Bothacker-Mutant | -8/Materials Bothacker-Mutant | -8/Garrison Bothacker-Mutant | -8/Materials Resources | -11 -10 -10 -10 -8 -8 -8 -8 -8 ----------- Run | Yrd Mat Min Sub Mat Gar Mat Gar Mat Matter Collected 5332 | 251 206 222 219 745 1347 446 1361 535 Remotely . | . . . . . . . . . Salvage Created 6513 | . 539 368 512 2291 1136 553 674 440 Parts 377 | . 29 23 36 112 78 29 43 27 Haulers Intercepted 10 | . 2 . . 6 . 2 . . Recyclers Shooed 2 | . 1 . . . . 1 . . Parts Field Recycled . | . . . . . . . . . Retrieved Matter . | . . . . . . . . . Parts Self-Destructed 21 | . . . 21 . . . . . Prevented 1 | . . . 1 . . . . . Kills | -11 -10 -10 -10 -8 -8 -8 -8 -8 ------- Run | Yrd Mat Min Sub Mat Gar Mat Gar Mat Combat Hostiles Destroyed 136 | . 11 14 6 38 29 6 20 12 Guns 113 | . 11 14 6 28 26 6 10 12 AOE 22 | . . . . 9 3 . 10 . Classes Destroyed 15 | . 4 1 3 4 1 1 1 . Worker 5 | . . 1 . 3 . . . 1 Builder 2 | . . . . 2 . . . . Tunneler 1 | . . . . 1 . . . . Hauler 10 | . 2 . . 6 . 2 . . Recycler 3 | . . . . 1 . 2 . . Watcher 8 | . 1 . . 5 . 1 1 . Swarmer 42 | . 3 9 . 11 7 . 7 5 Grunt 56 | . 8 5 . 19 14 2 7 1 Duelist 7 | . . . . 1 3 . 2 1 Sentry 18 | . . . 1 7 3 3 1 3 Demolisher 1 | . . . . . . 1 . . Hunter 5 | . . . . . . . 3 2 Programmer 4 | . . . . . 2 . 2 . Artisan 1 | . . . 1 . . . . . Subdweller 5 | . . . 5 . . . . . Thug 1 | . . . 1 . . . . . Best Kill Streak 7 | . 2 5 2 5 7 3 4 3 Combat Bots Only 7 | . 2 5 2 4 7 2 4 3 Max Kills in Single Turn 4 | . 1 1 1 3 1 2 4 2 Gunslinging 1 | . . . . . . . . 1 Exploded 4 | . . . . 2 1 . 4 . Melee . | . . . . . . . . . Uniques/NPCs Destroyed . | . . . . . . . . . Combat | -11 -10 -10 -10 -8 -8 -8 -8 -8 -------- Run | Yrd Mat Min Sub Mat Gar Mat Gar Mat Hostile Shots Fired 569 | . 49 56 43 143 123 12 87 56 Missed 176 | . 16 26 16 41 28 1 27 21 Hits 393 | . 33 30 27 102 95 11 60 35 Melee 5 | . . . . . 5 . . . Projectile 388 | . 33 30 27 102 90 11 60 35 AOE 1 | . . . . . . 1 . . Critical Strikes 10 | . . . . 4 5 . 1 . Damage Taken 5539 | . 391 291 341 1651 1375 205 830 455 Core 703 | . 46 29 72 167 267 . 31 91 Absorbed by Shields 16 | . . . . . 16 . . . Regen/Repaired (Parts) 503 | . 91 . . 273 . 139 . . Core Remaining (%) 70 | 100 . . 41 . . . . . Volleys Fired 519 | . 71 36 46 115 99 35 76 41 Largest 2 | . 2 2 2 2 2 2 2 2 Hottest 100 | . 40 40 60 100 73 50 61 50 Shots Fired 983 | . 142 72 92 221 191 65 131 69 Gun 932 | . 142 72 92 217 184 60 107 58 Cannon . | . . . . . . . . . Launcher 23 | . . . . 4 7 . 12 . Special 28 | . . . . . . 5 12 11 Kinetic 802 | . 142 72 92 88 183 60 107 58 Thermal . | . . . . . . . . . Explosive 23 | . . . . 4 7 . 12 . Electromagnetic 130 | . . . . 129 1 . . . Robot Hit Streak 21 | . 9 13 21 16 15 18 11 16 Robot Miss Streak 8 | . 5 2 8 8 4 3 4 3 Penetration Max . | . . . . . . . . . Secondary Targets 13 | . . 4 . 5 2 . . 2 Max Gunslinging Chain 1 | . . 1 . 1 1 . . 1 Shots Hit Robots 660 | . 77 59 68 151 122 44 87 52 Core Hits 330 | . 33 28 25 103 51 19 52 19 Critical Kills 2 | . . . . . 1 . 1 . Critical Parts Destroyed 2 | . . . . . 1 . 1 . Critical Strikes 4 | . . . . . 2 . 2 . Destroy 4 | . . . . . 2 . 2 . Melee Attacks 42 | . . . 12 . 11 2 12 5 Impact 12 | . . . 12 . . . . . Slashing 30 | . . . . . 11 2 12 5 Piercing . | . . . . . . . . . Sneak Attacks 2 | . . . . . . 1 . 1 Combat Hostiles . | . . . . . . . . . Follow-up Attacks . | . . . . . . . . . Damage Inflicted 12772 | . 635 494 737 4138 2447 770 2776 775 Guns 9644 | . 616 478 737 2781 2259 697 1376 700 Cannons . | . . . . . . . . . Explosions 2945 | . . . . 1357 188 . 1400 . Melee 134 | . . . . . . 68 . 66 Ramming 49 | . 19 16 . . . 5 . 9 Kinetic 7594 | . 616 478 737 743 2247 697 1376 700 Thermal 1154 | . . . . 1154 . . . . Explosive 1791 | . . . . 203 188 . 1400 . Electromagnetic 2050 | . . . . 2038 12 . . . Impact . | . . . . . . . . . Slashing 134 | . . . . . . 68 . 66 Piercing . | . . . . . . . . . Highest Corruption 11 | . . . . 1 5 8 11 11 Average Corruption 6 | . . . . 1 3 7 10 11 Corruption Purged . | . . . . . . . . . Corruption Blocked . | . . . . . . . . . Effects 210 | . . . . 16 42 29 81 42 Message Errors 44 | . . . . 3 9 7 18 7 Matter Fused 55 | . . . . 5 11 8 16 15 Heat Flow Errors 35 | . . . . 3 8 1 16 7 Energy Discharges 22 | . . . . 2 5 5 7 3 Parts Rejected 2 | . . . . . . . 1 1 Parts Fused 2 | . . . . . . . 1 1 Data Loss (minor) 25 | . . . . 2 5 4 11 3 Data Loss (major) 5 | . . . . . 1 . 3 1 Misfires 7 | . . . . . 2 1 2 2 Alerts 9 | . . . . 1 . 3 3 2 Weapon Failures 4 | . . . . . 1 . 3 . Overload Shots . | . . . . . . . . . Overflow Damage 137 | . . . . 37 . 28 26 46 Projectiles . | . . . . . . . . . Explosions 63 | . . . . 37 . . 26 . Melee 74 | . . . . . . 28 . 46 Knockbacks 2 | . 1 1 . . . . . . Impact 2 | . 1 1 . . . . . . Kinetic . | . . . . . . . . . Secondary . | . . . . . . . . . Self-Inflicted Damage 178 | . . . . 178 . . . . Shots 6 | . . . . 6 . . . . Rammed 12 | . 4 4 . . . 3 . 1 Targets Rammed 13 | . 4 5 . . . 3 . 1 Kicked . | . . . . . . . . . Crushed 1 | . . 1 . . . . . . Highest Temperature 327 | . 9 11 . 299 262 206 327 239 Average Temperature 68 | . 8 5 . 56 88 30 79 68 Received Heat Transfer 1788 | . 165 81 42 684 483 72 162 99 Effects 2 | . . . . . . . 2 . Energy Bleed 1 | . . . . . . . 1 . Interference 1 | . . . . . . . 1 . Siege Activations . | . . . . . . . . . Martial Activations . | . . . . . . . . . Shielding Activations . | . . . . . . . . . Robots Disrupted 1 | . . . . 1 . . . . Combat Hostiles 1 | . . . . 1 . . . . Robots Corrupted 1 | . . . . 1 . . . . Combat Hostiles 1 | . . . . 1 . . . . Parts Fried 6 | . . . . 6 . . . . Impact Corruptions . | . . . . . . . . . Robots Melted . | . . . . . . . . . Combat Hostiles . | . . . . . . . . . Parts Melted 1 | . . . 1 . . . . . Heat Transferred 1200 | . . . . 1200 . . . . Parts Sabotaged . | . . . . . . . . . Parts Stolen . | . . . . . . . . . Parts Stripped . | . . . . . . . . . Power Chain Reactions 14 | . . . . 14 . . . . Alert | -11 -10 -10 -10 -8 -8 -8 -8 -8 ------- Run | Yrd Mat Min Sub Mat Gar Mat Gar Mat Maximum Alert Level 4 | . . . . 1 4 2 4 2 Low Security (%) 54 | 100 100 100 . 90 15 42 11 . Level 1 13 | . . . . 9 13 3 19 50 Level 2 16 | . . . . . 21 53 25 49 Level 3 11 | . . . . . 20 . 42 . Level 4 4 | . . . . . 29 . 2 . Level 5 . | . . . . . . . . . High Security . | . . . . . . . . . Max Security . | . . . . . . . . . Peak Influence 1348 | . 125 140 . 226 1348 657 1129 549 Initial 657 | . . . . . 133 657 42 549 Average 319 | . 38 31 . 109 719 326 589 407 Influence Increases 5455 | . 388 335 94 1267 1405 334 1317 315 Destroy 0b10 Robot/C 3025 | . 220 280 80 760 740 180 555 210 Destroy 0b10 Robot/NC 143 | . 15 5 . 90 . 25 4 4 Destroy Leader 502 | . 56 50 10 182 20 56 64 64 Allied During Kill 145 | . . . 4 . 49 15 64 13 Trap Triggered on 0b10 20 | . . . . 20 . . . . Successful Hack 108 | . 37 . . 23 . 10 18 20 Select Force Hacks 60 | . 30 . . . . 30 . . Disable Machine 96 | . . . . 60 . . 36 . Anti-Garrison Action 777 | . . . . . 400 . 377 . Destroy Structure 363 | . . . . 87 106 3 163 4 Lose Combat Pursuer 216 | . 30 . . 45 90 15 36 . Influence Decreases 5185 | . 388 335 94 1061 263 1617 253 1174 Entered New Map 1367 | . . . . . 73 691 23 580 Time Decay 2217 | . 388 305 94 640 . 356 . 434 Lost Part 290 | . . 30 . 110 90 10 20 30 Lost Ally 550 | . . . . . 100 110 210 130 Purge Threat 761 | . . . . 311 . 450 . . Squads Dispatched 14 | . 2 . . 4 . 6 . 2 Investigation 6 | . 2 . . 2 . 2 . . Extermination . | . . . . . . . . . Reinforcement 4 | . . . . 2 . 1 . 1 Assault 1 | . . . . . . . . 1 Garrison 3 | . . . . . . 3 . . Intercept . | . . . . . . . . . Searches Triggered . | . . . . . . . . . Construction Impeded 2 | . . . . 2 . . . . Haulers Reinforced . | . . . . . . . . . Active Scanning Responses . | . . . . . . . . . Cargo Convoy Interrupts . | . . . . . . . . . Stealth | -11 -10 -10 -10 -8 -8 -8 -8 -8 --------- Run | Yrd Mat Min Sub Mat Gar Mat Gar Mat Distress Signals 8 | . 1 . . 1 . 1 3 2 Communications Jammed . | . . . . . . . . . Distress Signals . | . . . . . . . . . Times Spotted 227 | . 24 14 7 48 39 18 50 27 Peak Tracking Total 7 | . 5 4 3 5 6 4 7 5 Tactical Retreats 9 | . 1 . . 1 3 1 3 . Traps | -11 -10 -10 -10 -8 -8 -8 -8 -8 ------- Run | Yrd Mat Min Sub Mat Gar Mat Gar Mat Traps Triggered 20 | . 3 . . 2 5 3 7 . Indirectly . | . . . . . . . . . Trap Hack Attempts 26 | . . . . 26 . . . . Triggered . | . . . . . . . . . Disarmed . | . . . . . . . . . Reprogrammed 5 | . . . . 5 . . . . Reused 2 | . . . . 2 . . . . Traps Extracted . | . . . . . . . . . Installed . | . . . . . . . . . Triggered 2 | . . . . 2 . . . . Machines | -11 -10 -10 -10 -8 -8 -8 -8 -8 ---------- Run | Yrd Mat Min Sub Mat Gar Mat Gar Mat Machines Disabled 16 | . . . 1 4 4 . 7 . Max in Single Turn 2 | . . . 1 2 1 . 2 . Garrison Relay 8 | . . . . . 4 . 4 . Machines Repaired . | . . . . . . . . . Machines Dismantled . | . . . . . . . . . Machines Sabotaged . | . . . . . . . . . Overloaded Fab Kills . | . . . . . . . . . Hacking | -11 -10 -10 -10 -8 -8 -8 -8 -8 --------- Run | Yrd Mat Min Sub Mat Gar Mat Gar Mat Machines Accessed 40 | . 10 . 1 15 3 5 4 2 Terminals 31 | . 8 . . 10 3 4 4 2 Fabricators . | . . . . . . . . . Repair Stations 3 | . 1 . . 2 . . . . Recycling Units 1 | . 1 . . . . . . . Scanalyzers 2 | . . . . 2 . . . . Garrison Access 2 | . . . . 1 . 1 . . Total Hacks 106 | . 35 . 1 41 9 12 5 3 Successful 68 | . 23 . 1 29 . 9 4 2 Failed 37 | . 12 . . 11 9 3 1 1 Catastrophic 6 | . 1 . . 1 1 1 1 1 Database Lockouts 1 | . . . . 1 . . . . Manual 60 | . 28 . . 18 . 10 1 3 Terminals 86 | . 32 . . 28 9 9 5 3 Fabricators . | . . . . . . . . . Repair Stations 9 | . 2 . . 7 . . . . Recycling Units 1 | . 1 . . . . . . . Scanalyzers 5 | . . . . 5 . . . . Garrison Access 4 | . . . . 1 . 3 . . Terminal Hacks 30 | . 12 . 1 10 . 3 4 . Robot Schematic 1 | . 1 . . . . . . . Robot Analysis 3 | . 2 . . 1 . . . . Prototype ID Bank 12 | . 9 . . 3 . . . . Open Door 1 | . . . . . . . 1 . Emergency Access Points 1 | . . . . . . . 1 . Alert Level 1 | . . . . 1 . . . . Unreport Threat 6 | . . . . 3 . 3 . . Recall Reinforcements 1 | . . . . 1 . . . . Hauler Manifests 1 | . . . . 1 . . . . Garrison Registry 1 | . . . . . . . 1 . Patrol Navigation 1 | . . . . . . . 1 . Proto ID Catalog 1 | . . . 1 . . . . . Fabricator Hacks . | . . . . . . . . . Repair Station Hacks 7 | . 2 . . 5 . . . . Scan Component 4 | . 1 . . 3 . . . . Repair 3 | . 1 . . 2 . . . . Recycling Unit Hacks . | . . . . . . . . . Scanalyzer 5 | . . . . 5 . . . . Insert Component 2 | . . . . 2 . . . . Analyze 3 | . . . . 3 . . . . Garrison Access Hacks 3 | . . . . 1 . 2 . . Unlock Access 2 | . . . . 1 . 1 . . Coupler Status 1 | . . . . . . 1 . . Unauthorized Hacks 23 | . 9 . . 8 . 4 . 2 Terminals 21 | . 8 . . 8 . 3 . 2 Assimilate 2 | . 1 . . . . 1 . . Botnet 3 | . 1 . . 1 . 1 . . Operators 4 | . 1 . . 1 . 1 . 1 Skim 12 | . 5 . . 6 . . . 1 Fabricators . | . . . . . . . . . Repair Stations . | . . . . . . . . . Recycling Units 1 | . 1 . . . . . . . Tunnel 1 | . 1 . . . . . . . Scanalyzers . | . . . . . . . . . Garrison Access 1 | . . . . . . 1 . . Eject 1 | . . . . . . 1 . . Data Cores Recovered . | . . . . . . . . . Used . | . . . . . . . . . Hacking Detections 34 | . 8 . . 15 3 4 2 2 Full Trace Events 4 | . 1 . . 1 2 . . . Feedback Events 2 | . . . . 1 1 . . . Corruption 1 | . . . . 1 . . . . Hackware Fried 1 | . . . . . 1 . . . Feedback Blocked . | . . . . . . . . . Robot Schematics Acquired 1 | . 1 . . . . . . . Robots Built . | . . . . . . . . . Authchips . | . . . . . . . . . Time . | . . . . . . . . . Total Robot Build Rating . | . . . . . . . . . Part Schematics Acquired 2 | . . . . 2 . . . . Parts Built . | . . . . . . . . . Authchips . | . . . . . . . . . Time . | . . . . . . . . . Total Part Build Rating . | . . . . . . . . . Parts Repaired 3 | . 1 . . 2 . . . . Time 78 | . 26 . . 52 . . . . Parts Recycled . | . . . . . . . . . Recycled Matter . | . . . . . . . . . Retrieved Matter . | . . . . . . . . . Retrieved Components . | . . . . . . . . . Parts Scanalyzed 2 | . . . . 2 . . . . Part Schematics Acquired 2 | . . . . 2 . . . . Parts Damaged . | . . . . . . . . . Bothacking | -11 -10 -10 -10 -8 -8 -8 -8 -8 ------------ Run | Yrd Mat Min Sub Mat Gar Mat Gar Mat Used RIF Installer 3 | . . . . . 2 . 1 . Threat Obfuscator 1 | . . . . . . . 1 . Watcher Feeds 1 | . . . . . 1 . . . Robots Hacked 19 | . . . . . . 2 9 8 Non-combat 3 | . . . . . . 1 . 2 Combat 16 | . . . . . . 1 9 6 Robot Hacks Applied 20 | . . . . . . 2 9 9 drop_inventory 1 | . . . . . . . . 1 find_garrison 1 | . . . . . . . . 1 amplify_resonance 2 | . . . . . . . 1 1 disable_weapons 1 | . . . . . . . . 1 reboot_system 1 | . . . . . . . . 1 overwrite_iff 6 | . . . . . . 1 4 1 formatsys_low 1 | . . . . . . 1 . . formatsys_high 7 | . . . . . . . 4 3 Relay Couplers Released 39 | . . . . . 18 4 17 . Ejected 4 | . . . . . . 4 . . Machine Destruction 35 | . . . . . 18 . 17 . Attached 11 | . . . . . 1 2 5 3 Fabnet Peak Effective % . | . . . . . . . . . Robots Rewired 18 | . . . . 1 9 . 8 . Allies Hacked . | . . . . . . . . . Hacks Repelled . | . . . . . . . . . Allies | -11 -10 -10 -10 -8 -8 -8 -8 -8 -------- Run | Yrd Mat Min Sub Mat Gar Mat Gar Mat Total Allies 37 | . 1 1 . 1 9 3 18 4 Largest Group 8 | . 1 1 1 1 8 4 6 4 Highest-Rated Group 109 | . 10 31 31 16 103 51 109 32 Highest-Rated Ally 34 | . 10 31 31 16 21 29 34 27 Total Orders 7 | . 1 . . . . 5 1 . STAY 3 | . 1 . . . . 1 1 . FOLLOW 2 | . . . . . . 2 . . AID 2 | . . . . . . 2 . . Ally Attacks 184 | . . . 14 1 37 33 70 29 Total Damage 2931 | . . . 145 . 586 610 1366 224 Kills 33 | . . . 3 . 8 3 17 2 Allies Corrupted . | . . . . . . . . . Allies Melted . | . . . . . . . . . Intel | -11 -10 -10 -10 -8 -8 -8 -8 -8 ------- Run | Yrd Mat Min Sub Mat Gar Mat Gar Mat Active Infowar (turns) 3035 | . . . 437 812 1694 92 . . Optics 561 | . . . 437 124 . . . . Jamming 2536 | . . . . 750 1694 92 . . Robot Analysis Total 3 | . 2 . . 1 . . . . Derelict Logs Recovered 2 | . . 1 1 . . . . . Drone Launches . | . . . . . . . . . Drone Recoveries . | . . . . . . . . . Exploration | -11 -10 -10 -10 -8 -8 -8 -8 -8 ------------- Run | Yrd Mat Min Sub Mat Gar Mat Gar Mat Turns Passed 12739 | 74 1524 1200 1530 2695 1694 803 2153 1066 Spaces Moved 5713 | 44 752 675 792 1182 725 404 765 374 Core 5 | 5 . . . . . . . . Treads 4877 | 39 752 675 792 731 345 404 765 374 Legs 439 | . . . . 59 380 . . . Wheels 392 | . . . . 392 . . . . Hover . | . . . . . . . . . Flight . | . . . . . . . . . Fastest Speed 50 | 50 160 160 160 155 125 160 160 235 Average Speed 176 | 147 160 160 160 167 162 160 230 235 Slowest Speed 320 | 160 160 160 160 320 320 160 240 235 Overloaded Moves . | . . . . . . . . . Propulsion Burnouts . | . . . . . . . . . Robots Hopped . | . . . . . . . . . Potential Cave-ins . | . . . . . . . . . Cave-ins Triggered . | . . . . . . . . . Exploration Rate (%) 64 | 4 96 99 52 83 82 39 79 50 Regions Visited 8 Branch Regions 2 Pre-discovered Areas 9 | . 5 . 2 2 . . . . Known Exits Taken 2 | . . . . 1 . 1 . . Unknown Exits Taken 4 | 1 1 1 1 . . . . . Scrap Searched 1 | . . 1 . . . . . . Spaces Dug 5 | . . . . . 1 1 . 3 Terrain Destroyed 225 | . . . . 90 69 1 62 3 Melee 5 | . . . . . 1 1 . 3 Projectile 3 | . . . . 3 . . . . AOE 217 | . . . . 87 68 . 62 . Terrain Rammed . | . . . . . . . . . Walls Destroyed . | . . . . . . . . . Machines Disabled . | . . . . . . . . . Actions | -11 -10 -10 -10 -8 -8 -8 -8 -8 --------- Run | Yrd Mat Min Sub Mat Gar Mat Gar Mat Total 7540 | 50 956 736 957 1681 1095 517 1040 508 Wait 689 | . 110 10 84 265 82 46 45 47 Move 5706 | 43 751 674 791 1182 724 403 764 374 Hop . | . . . . . . . . . Pick Up 87 | 1 12 4 6 21 11 5 17 10 Fast Attach 40 | 6 2 . . 15 12 3 1 1 Attach 25 | . . 2 1 11 5 1 2 3 Detach 11 | . . . . 8 1 2 . . Swap 125 | . 3 2 10 17 19 11 41 22 Drop 59 | . 3 3 7 20 8 5 9 4 Fire 519 | . 71 36 46 115 99 35 76 41 Melee 42 | . . . 12 . 11 2 12 5 Ram . | . . . . . . . . . Kick . | . . . . . . . . . Crush 13 | . 4 5 . . . 3 . 1 Escape Stasis 32 | . . . . . 24 . 8 . Rewire 165 | . . . . 1 99 1 64 . Trap 26 | . . . . 26 . . . . Miscellaneous 1 | . . . . . . . 1 . Route ------- -11/Scrapyard -10/Materials (discovered 5 exits: *Mat x3 / [*Min] / *Sub) -10/Mines (discovered 3 exits: *Mat x2 / *Sub) -10/Subcaves (discovered 2 exits: *Mat x2) -8/Materials (discovered 4 exits: *Fac x3 / Gar) -8/Garrison (discovered 3 exits: *Mat x3) -8/Materials (discovered 2 exits: *Fac / Gar) -8/Garrison (discovered 4 exits: *Fac x3 / *Mat) -8/Materials (discovered 1 exit: *Fac) History --------- Turn | Location | Event 5 | -11/Scrapyard | Discovered new exit (range 15) 75 | -11/Scrapyard | Entered Materials 278 | -10/Materials | Discovered new exit (range 12) 301 | -10/Materials | Build established: Mutant 504 | -10/Materials | Discovered new exit (range 15) 974 | -10/Materials | Discovered new exit (range 8) 1150 | -10/Materials | Loaded intel: 1 repair station location 1182 | -10/Materials | Discovered new exit (range 8) 1254 | -10/Materials | Identified exit to Materials 1254 | -10/Materials | Learned location of 1 exit from Materials 1318 | -10/Materials | Learned Storage stockpile data 1358 | -10/Materials | Learned location of 1 exit from Storage 1391 | -10/Materials | Learned location of Mines (-10) 1401 | -10/Materials | Repaired Lgt. Treads 1433 | -10/Materials | Learned location of Mines (-9) 1599 | -10/Materials | Entered Mines 1611 | -10/Mines | Discovered exit to Materials (range 5) 1843 | -10/Mines | Discovered exit to Materials (range 11) 1942 | -10/Mines | Found a hidden stash of uninstalled traps 1982 | -10/Mines | Deemed a non-threat by the Exiles lab entrance 2044 | -10/Mines | Found DCF Scrap (13 items) 2059 | -10/Mines | Learned location of 1 exit from Materials 2152 | -10/Mines | Discovered new exit (range 11) 2365 | -10/Mines | Found a Scrap Suit stashed away for nefarious purposes 2485 | -10/Mines | Received a Rocket Launcher from a helpful Derelict 2557 | -10/Mines | Escorted by a lone wolf Derelict 2799 | -10/Mines | Entered Subcaves 2799 | -10/Subcaves | Accompanied by 1 ally 2800 | -10/Subcaves | Approached by a straggling Scientist 2821 | -10/Subcaves | Discovered new exit (range 11) 3151 | -10/Subcaves | A swath of the cavern ceiling suddenly collapsed 3191 | -10/Subcaves | Shifting Twisted Machinery released Mak. Hacking Suite 3269 | -10/Subcaves | Shifting Twisted Machinery released Sub. Machine Gun 3360 | -10/Subcaves | Core integrity fell below 50% 3462 | -10/Subcaves | Learned location of Zion (-7) 3462 | -10/Subcaves | Met a Zionite searching for "candidates" 3752 | -10/Subcaves | Visited 4L-MR0's lab 3768 | -10/Subcaves | Found Cargo Legs 3939 | -10/Subcaves | Ambushed by angry Subdweller bent on revenge 4249 | -10/Subcaves | Discovered new exit (range 10) 4298 | -10/Subcaves | A swath of the cavern ceiling suddenly collapsed 4329 | -10/Subcaves | Entered Materials 4329 | -8/Materials | Evolved 4 slots: Propulsion x1, Utility x3 4330 | -8/Materials | Identified exit to Factory 4902 | -8/Materials | Build established: Scavenger-Mutant 5857 | -8/Materials | Repaired Lgt. Treads 5885 | -8/Materials | Repaired Lgt. Treads 6039 | -8/Materials | Build established: Mutant 6486 | -8/Materials | Learned 2 Storage zone layouts 6578 | -8/Materials | Learned Storage security intel 6588 | -8/Materials | Learned location of 1 exit from Lower Caves 6654 | -8/Materials | Learned 2 Lower Caves zone layouts 6823 | -8/Materials | Central database locked down 6905 | -8/Materials | Attached Cargo Legs, gained temporary slots: Utility x2 7024 | -8/Materials | Identified exit to Garrison 7024 | -8/Materials | Entered Garrison 7058 | -8/Garrison | Triggered checkpoint 7098 | -8/Garrison | Garrison Relay disabled 7280 | -8/Garrison | Mak. Hacking Suite fried by hacking feedback 7368 | -8/Garrison | Triggered checkpoint 7428 | -8/Garrison | Triggered checkpoint 7525 | -8/Garrison | Installed Relay Interface Framework 7543 | -8/Garrison | Garrison Relay disabled 7588 | -8/Garrison | Discovered new exit (range 12) 7720 | -8/Garrison | Lost 3 parts (1n2u) 7732 | -8/Garrison | Destroyed 7 combat bots 7755 | -8/Garrison | Triggered checkpoint 7809 | -8/Garrison | Core integrity fell below 50% 7870 | -8/Garrison | Garrison Relay disabled 7910 | -8/Garrison | Triggered checkpoint 8009 | -8/Garrison | Discovered new exit (range 11) 8172 | -8/Garrison | Build established: Bothacker-Mutant 8474 | -8/Garrison | Triggered checkpoint 8538 | -8/Garrison | Triggered checkpoint 8583 | -8/Garrison | Garrison Relay disabled 8635 | -8/Garrison | Discovered new exit (range 10) 8673 | -8/Garrison | Expanded RIF knowledge: Watcher Feeds 8718 | -8/Garrison | Entered Materials 8718 | -8/Materials | Accompanied by 4 allies 8918 | -8/Materials | Garrison activated, responded to threat 9183 | -8/Materials | Discovered exit to Factory (range 22) 9509 | -8/Materials | Identified exit to Garrison 9521 | -8/Materials | Entered Garrison 9521 | -8/Garrison | Accompanied by 1 ally 9536 | -8/Garrison | Expanded RIF knowledge: Threat Obfuscation 9575 | -8/Garrison | Triggered checkpoint 9621 | -8/Garrison | Garrison Relay disabled 9706 | -8/Garrison | Triggered checkpoint 9707 | -8/Garrison | Triggered checkpoint 9726 | -8/Garrison | System corruption reached 10% 9736 | -8/Garrison | Core integrity fell below 20% 9993 | -8/Garrison | Garrison Relay disabled 10027 | -8/Garrison | Discovered exit to Factory (range 10) 10046 | -8/Garrison | Triggered checkpoint 10121 | -8/Garrison | Triggered checkpoint 10287 | -8/Garrison | Garrison Relay disabled 10389 | -8/Garrison | Triggered checkpoint 10431 | -8/Garrison | Lost 3 allies 10513 | -8/Garrison | Garrison Relay disabled 10664 | -8/Garrison | Rescued a captive Derelict 10665 | -8/Garrison | Rescued a captive Derelict 10711 | -8/Garrison | Triggered checkpoint 11076 | -8/Garrison | Spotted B-75 Beast 11114 | -8/Garrison | Lost 3 allies 11324 | -8/Garrison | Discovered exit to Factory (range 15) 11380 | -8/Garrison | Discovered exit to Factory (range 84) 11380 | -8/Garrison | Discovered exit to Factory (range 10) 11380 | -8/Garrison | Discovered exit to Factory (range 37) 11380 | -8/Garrison | Discovered new exit (range 67) 11581 | -8/Garrison | Triggered checkpoint 11674 | -8/Garrison | Entered Materials 11674 | -8/Materials | Accompanied by 4 allies 11985 | -8/Materials | Lost 4 allies 12074 | -8/Materials | First assault squad dispatched 12116 | -8/Materials | Discovered exit to Factory (range 15) 12740 | -8/Materials | Destroyed by G-50 Soldier with Heavy Laser Last Messages --------------- 12691_ >> Watcher Feeds: Feed link from W-25 Informer lost. 12693_ System corrupted: Matter fused (-6). 12700_ >> Watcher Feeds: Feed link from W-25 Informer lost. 12713_ >> Watcher Feeds: Established visual feed link with W-25 Informer. 12716_ System corrupted: Heat flow error (+257). 12724_ W-25 Informer sends out distress signal. 12724_ Discarded Relay Coupler [Sentry]. 12727_ Jacked G-47 Trooper... >>formatsys_high Rerouting network defenses. Erasing system data. Installing primary routines, ETC: 6. 12729_ Jacked G-47 Trooper... >>overwrite_iff Rewriting IFF filter. 12729_ Trooper 3b suffers critical hit (Burn). 12731_ Trooper 3b destroyed. 12738_ G-47 Trooper suffers critical hit (Burn). 12740_ System corrupted: Heat flow error (+141). 12740_ Network quickbooting G-47 Trooper, ETC: 7. Map ----- +----------------------------------------------------+ | ???????????# # # #??????????###??????? | | ???????????# # + !!/ #???????????????????? | | ???????????# # # !!/ #???????????????????? | | ???????????# # #!!!/ #???????????????????? | | ???????????# # # /#???????????????????? | | ???????????######## # ##??????????????????? | | ??????????????????# ## ######??????????????????? | | ????# ????????????# ####??###??????????????????? | | #+### ########### #??????????????????????????? | | #??????????????????????????? | | o #??????????????????????????? | | #??????????????????????????? | | #+####+########+#######??????????????????????????? | | ?????????????# ############????????????????? | | ?????????????# ## #????????????????? | | ?????????????# ## "T" """ #????????????????? | | ?????????????# ## """ #????????????????? | | ?????????????# ##! """ #????????????????? | | ?????????????# ## = #????????????????? | | ?????????????# ##! ########+###?????? | | ???########### ## % + +?????? | | ???# #####"####/ = # #?????? | | #### """ """ # ########g##### #?????? | | + """ """ # t g #?????? | | #### """ """ + a w +?????? | | ???# [%= # a @ #?????? | | ???# []# ####### ############# #?????? | | ???# [ ## ##?????# #???????????? #?????? | | ???# ## #??????# #?????????????#?????? | | ???#######+#### #??????# #???????????????????? | | ?????????# #??# #??????# !???????????????????? | | ########## #??# #??????+ ??????????????????? | | #??# #??????# ?????????????????? | | ######## #??# #??????# """????????????????? | | ?????????#+#??# #??????# """ ???????????????? | | ???????? ?# #??????# """ ??????????????? | | ??????"" """ # ??????# ?? ?????????????? | | ???? """ """ # ?????? ?????????????????? | | ???# """ """ + ?????? ###?????????????????? | | ???# """ """ # ????? #???????????????????? | | ???# """ """ # #?????##+##???????????????????? | | ???? ## #??????????????????????????????? | | ????? [ ??? #???????????????????????????????????? | | ??????##?????#???????????????????????????????????? | | ?????????????????????????????????????????????????? | | ?????????????????????????????????????????????????? | | ?????????????????????????????????????????????????? | | ?????????????????????????????????????????????????? | | ?????????????????????????????????????????????????? | | ?????????????????????????????????????????????????? | +----------------------------------------------------+ Best States ------------- Heat Dissipation 59 Energy Generation 16 Energy Capacity 290 Matter Stores 300 Matter Capacity 300 Sight Range 21 Terrain Scan Density 10 Jamming Range 12 Armor Coverage 300 Evasion (%) 55 Targeting Accuracy 8 Recoil Reduction 3 Offensive Hacking 11 Relay Coupler Types 2 Relay Coupler Value 45 Item Schematics ----------------- Multitool | -8/Materials | Scanalyzed Transmission Jammer | -8/Materials | Scanalyzed Robot Schematics ------------------ M-13 Machinist | -10/Materials | Hacked Fabricated ------------ Nothing Repaired ---------- Lgt. Treads | 35% | -10/Materials Lgt. Treads | 1% | -8/Materials Lgt. Treads | 3% | -8/Materials Alien Tech Used ----------------- None Achievements -------------- None Challenges ------------ None Game ------ Seed GlidesysRemoteCapacitor Manual? 0 Play Time 01:02:07 Cumulative 742.4 hours Start 2025.09.09 @ 08:22:35 End 2025.09.10 @ 08:21:28 Sessions 3 Manual Loads 0 Difficulty Rogue Special Mode None Game No. 383 Rogue 383 Adventurer 0 Explorer 0 Win Type - Total 60 Types 41/4/5/2/1/1/3/1/1/1 Lore% 92 Gallery% 86 Achievement% 91 Wizard Run 0 Options --------- Layout 0 ASCII 0 Keyboard 1 Movement Numpad Keybinds 0 Fullscreen 2 Font 18/SmallcapsGlow Map View 76x50 Zoom Use 0% Tactical HUD 1 Map Filters NONE Filters NONE Steam 1 RUN: 0e3d6619-f223-4f72-81b2-7d447fd91b6b